fUST/lending_fUST_20240902
["ID","MTS","AMOUNT","RATE_DAILY","PERIOD"]
[336942906,1725257440044,-574.53,0.00024657,2]
[336942907,1725257440053,-500.0,0.00024657,2]
[336942908,1725257440062,-500.0,0.00024657,2]
[336942909,1725257440071,-500.0,0.00024657,2]
[336942910,1725257440080,-500.0,0.00024657,2]
[336942911,1725257440089,-500.0,0.00024657,2]
[336942912,1725257440099,-500.0,0.00024657,2]
[336942913,1725257440108,-500.0,0.00024657,2]
[336942914,1725257440117,-518.80436979,0.00024657,2]
[336942915,1725257440126,-500.0,0.00024657,2]
[336942916,1725257440135,-500.0,0.00024657,2]
[336942917,1725257440145,-641.92,0.00024657,2]
[336942918,1725257440154,-500.0,0.00024657,2]
[336942919,1725257440164,-500.0,0.00024657,2]
[336942920,1725257440180,-500.0,0.00024657,2]
[336942921,1725257440189,-500.0,0.00024657,2]
[336942922,1725257440199,-500.0,0.00024657,2]
[336942923,1725257440208,-500.0,0.00024657,2]
[336942924,1725257440218,-500.0,0.00024657,2]
[336942925,1725257440228,-500.0,0.00024657,2]
[336942926,1725257440237,-500.0,0.00024657,2]
[336942927,1725257440247,-500.0,0.00024657,2]
[336942928,1725257440256,-500.0,0.00024657,2]
[336942929,1725257440265,-500.0,0.00024657,2]
[336942930,1725257440274,-500.0,0.00024657,2]
[336942931,1725257440283,-500.0,0.00024657,2]
[336942932,1725257440292,-500.0,0.00024657,2]
[336942933,1725257440301,-500.0,0.00024657,2]
[336942934,1725257440310,-500.0,0.00024657,2]
[336942935,1725257440320,-500.0,0.00024657,2]
[336942936,1725257440329,-500.0,0.00024657,2]
[336942937,1725257440339,-504.42495266,0.00024657,2]
[336942938,1725257440350,-500.0,0.00024657,2]
[336942939,1725257440359,-500.0,0.00024657,2]
[336942940,1725257440368,-500.0,0.00024657,2]
[336942941,1725257440378,-661.37,0.00024657,2]
[336942942,1725257440387,-500.0,0.00024657,2]
[336942943,1725257440397,-500.0,0.00024657,2]
[336942944,1725257440406,-500.0,0.00024657,2]
[336942945,1725257440415,-500.0,0.00024657,2]
[336942946,1725257440425,-502.47586934,0.00024657,2]
[336942947,1725257440434,-500.0,0.00024657,2]
[336942948,1725257440443,-2938.28,0.00024657,2]
[336942949,1725257440452,-505.10251526,0.00024657,2]
[336942950,1725257440461,-500.0,0.00024657,2]
[336942951,1725257440471,-500.0,0.00024657,2]
[336942952,1725257440481,-500.0,0.00024657,2]
[336942953,1725257440490,-500.0,0.00024657,2]
[336942954,1725257440501,-500.0,0.00024657,2]
[336942955,1725257440510,-200.0,0.00024657,2]
[336942956,1725257440520,-500.0,0.00024657,2]
[336942957,1725257440529,-585.91351314,0.00024657,2]
[336942958,1725257440538,-500.0,0.00024657,2]
[336942959,1725257440547,-500.0,0.00024657,2]
[336942960,1725257440556,-500.0,0.00024657,2]
[336942961,1725257440565,-500.0,0.00024657,2]
[336942962,1725257440575,-500.0,0.00024657,2]
[336942963,1725257440584,-500.0,0.00024657,2]
[336942964,1725257440593,-500.0,0.00024657,2]
[336942965,1725257440602,-500.0,0.00024657,2]
[336942966,1725257440612,-500.0,0.00024657,2]
[336942967,1725257440621,-500.0,0.00024657,2]
[336942968,1725257440630,-500.0,0.00024657,2]
[336942969,1725257440639,-500.0,0.00024657,2]
[336942970,1725257440648,-244.59101297,0.00024657,2]
[336942971,1725257440657,-500.0,0.00024657,2]
[336942973,1725257440666,-500.0,0.00024657,2]
[336942975,1725257440676,-500.0,0.00024657,2]
[336942977,1725257440686,-500.0,0.00024657,2]
[336942979,1725257440695,-500.0,0.00024657,2]
[336942980,1725257440704,-500.0,0.00024657,2]
[336942981,1725257440713,-500.0,0.00024657,2]
[336942983,1725257440722,-834.33,0.00024657,2]
[336942985,1725257440731,-872.84,0.00024657,2]
[336942987,1725257440741,-500.0,0.00024657,2]
[336942988,1725257440749,-500.0,0.00024657,2]
[336942990,1725257440759,-524.17558271,0.00024657,2]
[336942991,1725257440768,-500.0,0.00024657,2]
[336942992,1725257440777,-500.0,0.00024657,2]
[336942993,1725257440786,-501.7539955,0.00024657,2]
[336942994,1725257440796,-500.0,0.00024657,2]
[336942995,1725257440805,-500.0,0.00024657,2]
[336942996,1725257440814,-566.86701025,0.00024657,2]
[336942997,1725257440824,-500.0,0.00024657,2]
[336942998,1725257440835,-500.0,0.00024657,2]
[336942999,1725257440844,-500.0,0.00024657,2]
[336943000,1725257440855,-407.48015764,0.00024657,2]
[336943001,1725257440864,-531.27,0.00024657,2]
[336943002,1725257440874,-500.0,0.00024657,2]
[336943003,1725257440883,-500.0,0.00024657,2]
[336943004,1725257440892,-500.0,0.00024657,2]
[336943005,1725257440902,-500.0,0.00024657,2]
[336943006,1725257440911,-500.0,0.00024657,2]
[336943007,1725257440920,-500.0,0.00024657,2]
[336943009,1725257440931,-500.0,0.00024657,2]
[336943010,1725257440940,-451.92411683,0.00024657,2]
[336943012,1725257440950,-385.87282955,0.00024657,2]
[336943013,1725257440959,-500.0,0.00024657,2]
[336943014,1725257440968,-500.0,0.00024657,2]
[336943015,1725257440977,-500.0,0.00024657,2]
[336943016,1725257440987,-500.0,0.00024657,2]
[336943017,1725257440996,-531.04903341,0.00024657,2]
[336943018,1725257441006,-500.0,0.00024657,2]
[336943019,1725257441015,-500.0,0.00024657,2]
[336943020,1725257441025,-500.0,0.00024657,2]
[336943021,1725257441034,-342.23550842,0.00024657,2]
[336943022,1725257441043,-500.0,0.00024657,2]
[336943023,1725257441052,-500.0,0.00024657,2]
[336943024,1725257441062,-284.89942225,0.00024657,2]
[336943025,1725257441071,-500.0,0.00024657,2]
[336943026,1725257441080,-500.0,0.00024657,2]
[336943027,1725257441089,-500.0,0.00024657,2]
[336943028,1725257441099,-503.21397657,0.00024657,2]
[336943029,1725257441108,-500.0,0.00024657,2]
[336943030,1725257441117,-500.0,0.00024657,2]
[336943031,1725257441127,-357.49324299,0.00024657,2]
[336943032,1725257441136,-500.0,0.00024657,2]
[336943033,1725257441145,-500.0,0.00024657,2]
[336943034,1725257441156,-578.52946165,0.00024657,2]
[336943035,1725257441168,-500.0,0.00024657,2]
[336943036,1725257441179,-444.9581942,0.00024657,2]
[336943037,1725257441189,-500.0,0.00024657,2]
[336943038,1725257441198,-500.0,0.00024657,2]
[336943039,1725257441207,-500.0,0.00024657,2]
[336943040,1725257441217,-503.27229465,0.00024657,2]
[336943041,1725257441227,-500.0,0.00024657,2]
[336943042,1725257441236,-500.0,0.00024657,2]
[336943043,1725257441247,-500.0,0.00024657,2]
[336943044,1725257441258,-500.0,0.00024657,2]
[336943045,1725257441268,-501.90515221,0.00024657,2]
[336943046,1725257441278,-500.0,0.00024657,2]
[336943047,1725257441287,-596.9275468,0.00024657,2]
[336943048,1725257441297,-500.0,0.00024657,2]
[336943049,1725257441306,-500.0,0.00024657,2]
[336943050,1725257441315,-500.0,0.00024657,2]
[336943051,1725257441324,-500.0,0.00024657,2]
[336943052,1725257441333,-501.42005762,0.00024657,2]
[336943053,1725257441343,-500.0,0.00024657,2]
[336943054,1725257441352,-500.0,0.00024657,2]
[336943055,1725257441361,-500.0,0.00024657,2]
[336943056,1725257441370,-500.0,0.00024657,2]
[336943057,1725257441379,-500.0,0.00024657,2]
[336943058,1725257441388,-500.0,0.00024657,2]
[336943059,1725257441398,-500.0,0.00024657,2]
[336943060,1725257441407,-500.0,0.00024657,2]
[336943061,1725257441416,-500.0,0.00024657,2]
[336943062,1725257441426,-567.6,0.00024657,2]
[336943063,1725257441435,-500.0,0.00024657,2]
[336943064,1725257441445,-500.0,0.00024657,2]
[336943065,1725257441454,-503.44164743,0.00024657,2]
[336943066,1725257441463,-500.0,0.00024657,2]
[336943067,1725257441472,-228.39434148,0.00024657,2]
[336943068,1725257441481,-500.0,0.00024657,2]
[336943069,1725257441490,-500.0,0.00024657,2]
[336943070,1725257441499,-500.0,0.00024657,2]
[336943071,1725257441509,-511.89508418,0.00024657,2]
[336943072,1725257441518,-500.0,0.00024657,2]
[336943073,1725257441527,-500.0,0.00024657,2]
[336943074,1725257441536,-759.85,0.00024657,2]
[336943075,1725257441545,-501.57384797,0.00024657,2]
[336943076,1725257441554,-500.0,0.00024657,2]
[336943077,1725257441563,-500.0,0.00024657,2]
[336943078,1725257441572,-500.0,0.00024657,2]
[336943079,1725257441582,-500.0,0.00024657,2]
[336943080,1725257441704,-500.0,0.00024657,2]
[336943081,1725257441730,-526.35037879,0.00024657,2]
[336943082,1725257441739,-500.0,0.00024657,2]
[336943083,1725257441749,-500.0,0.00024657,2]
[336943084,1725257441759,-585.40835845,0.00024657,2]
[336943085,1725257441768,-500.0,0.00024657,2]
[336943086,1725257441777,-500.0,0.00024657,2]
[336943087,1725257441789,-500.0,0.00024657,2]
[336943088,1725257441799,-500.0,0.00024657,2]
[336943089,1725257441811,-500.0,0.00024657,2]
[336943090,1725257441822,-290.40627938,0.00024657,2]
[336943091,1725257441831,-732.08,0.00024657,2]
[336943092,1725257441841,-500.49813401,0.00024657,2]
[336943093,1725257441850,-500.0,0.00024657,2]
[336943094,1725257441859,-500.0,0.00024657,2]
[336943095,1725257441868,-500.0,0.00024657,2]
[336943096,1725257441877,-500.0,0.00024657,2]
[336943097,1725257441886,-500.0,0.00024657,2]
[336943098,1725257441896,-500.0,0.00024657,2]
[336943099,1725257441905,-500.0,0.00024657,2]
[336943100,1725257441914,-500.0,0.00024657,2]
[336943101,1725257441924,-500.0,0.00024657,2]
[336943102,1725257441935,-688.96,0.00024657,2]
[336943103,1725257441944,-500.0,0.00024657,2]
[336943104,1725257441954,-500.0,0.00024657,2]
[336943105,1725257441963,-500.0,0.00024657,2]
[336943106,1725257441973,-500.0,0.00024657,2]
[336943107,1725257441982,-500.0,0.00024657,2]
[336943108,1725257441991,-500.0,0.00024657,2]
[336943109,1725257442000,-631.12,0.00024657,2]
[336943110,1725257442009,-508.24120198,0.00024657,2]
[336943111,1725257442018,-513.04725823,0.00024657,2]
[336943112,1725257442027,-500.0,0.00024657,2]
[336943113,1725257442037,-545.17,0.00024657,2]
[336943114,1725257442046,-500.0,0.00024657,2]
[336943115,1725257442055,-500.0,0.00024657,2]
[336943116,1725257442064,-500.0,0.00024657,2]
[336943117,1725257442073,-500.0,0.00024657,2]
[336943118,1725257442082,-862.81,0.00024657,2]
[336943119,1725257442091,-502.87759677,0.00024657,2]
[336943120,1725257442100,-500.0,0.00024657,2]
[336943121,1725257442109,-500.0,0.00024657,2]
[336943122,1725257442118,-500.0,0.00024657,2]
[336943123,1725257442128,-500.0,0.00024657,2]
[336943124,1725257442137,-500.0,0.00024657,2]
[336943125,1725257442146,-500.0,0.00024657,2]
[336943126,1725257442155,-500.0,0.00024657,2]
[336943127,1725257442165,-500.0,0.00024657,2]
[336943128,1725257442176,-1042.62,0.00024657,2]
[336943129,1725257442195,-500.0,0.00024657,2]
[336943130,1725257442204,-644.3152886,0.00024657,4]
[336943131,1725257442214,-1337.41,0.00024657,2]
[336943132,1725257442223,-500.0,0.00024657,2]
[336943133,1725257442232,-607.2,0.00024657,2]
[336943134,1725257442242,-500.0,0.00024657,2]
[336943135,1725257442251,-500.0,0.00024657,2]
[336943136,1725257442261,-500.0,0.00024657,2]
[336943137,1725257442270,-154.83952908,0.00024657,2]
[336943138,1725257442279,-572.3146325,0.00024657,2]
[336943139,1725257442288,-500.0,0.00024657,2]
[336943140,1725257442298,-500.0,0.00024657,2]
[336943141,1725257442307,-500.0,0.00024657,2]
[336943142,1725257442316,-503.04928506,0.00024657,2]
[336943143,1725257442325,-500.0,0.00024657,2]
[336943144,1725257442335,-500.0,0.00024657,2]
[336943145,1725257442344,-500.0,0.00024657,2]
[336943146,1725257442353,-500.0,0.00024657,2]
[336943147,1725257442363,-1014.13,0.00024657,2]
[336943148,1725257442372,-500.0,0.00024657,2]
[336943149,1725257442381,-500.0,0.00024657,2]
[336943150,1725257442391,-1816.73,0.00024657,2]
[336943151,1725257442400,-500.0,0.00024657,2]
[336943152,1725257442409,-500.0,0.00024657,2]
[336943153,1725257442418,-500.0,0.00024657,2]
[336943154,1725257442433,-500.0,0.00024657,2]
[336943155,1725257442443,-500.0,0.00024657,2]
[336943156,1725257442452,-1339.33,0.00024657,2]
[336943157,1725257442461,-312.22824934,0.00024657,2]
[336943158,1725257442470,-2203.75,0.00024657,2]
[336943159,1725257442479,-500.0,0.00024657,2]
[336943160,1725257442488,-689.96,0.00024657,2]
[336943161,1725257442498,-1050.36,0.00024657,2]
[336943162,1725257442506,-500.0,0.00024657,2]
[336943163,1725257442516,-1328.27,0.00024657,2]
[336943164,1725257442525,-505.7863791,0.00024657,2]
[336943165,1725257442535,-500.0,0.00024657,2]
[336943166,1725257442545,-500.0,0.00024657,2]
[336943167,1725257442554,-500.0,0.00024657,2]
[336943168,1725257442563,-500.0,0.00024657,2]
[336943169,1725257442572,-500.0,0.00024657,2]
[336943170,1725257442581,-502.30849553,0.00024657,2]
[336943171,1725257442590,-500.0,0.00024657,2]
[336943172,1725257442600,-500.0,0.00024657,2]
[336943173,1725257442609,-500.0,0.00024657,2]
[336943174,1725257442618,-625.24,0.00024657,2]
[336943175,1725257442627,-500.0,0.00024657,2]
[336943176,1725257442637,-500.0,0.00024657,2]
[336943177,1725257442646,-1622.43,0.00024657,2]
[336943178,1725257442655,-9403.35,0.00024657,2]
[336943179,1725257442665,-500.0,0.00024657,2]
[336943180,1725257442674,-500.0,0.00024657,2]
[336943181,1725257442686,-611.88449323,0.00024657,2]
[336943182,1725257442695,-500.0,0.00024657,2]
[336943183,1725257442705,-500.0,0.00024657,2]
[336943184,1725257442714,-500.0,0.00024657,2]
[336943185,1725257442723,-500.0,0.00024657,2]
[336943186,1725257442732,-500.0,0.00024657,2]
[336943187,1725257442741,-500.0,0.00024657,2]
[336943188,1725257442750,-500.0,0.00024657,2]
[336943189,1725257442759,-1227.99,0.00024657,2]
[336943190,1725257442769,-500.0,0.00024657,2]
[336943192,1725257442778,-500.0,0.00024657,2]
[336943193,1725257442787,-536.95610484,0.00024657,2]
[336943194,1725257442797,-500.0,0.00024657,2]
[336943195,1725257442806,-500.34,0.00024657,2]
[336943196,1725257442815,-500.0,0.00024657,2]
[336943197,1725257442825,-500.0,0.00024657,2]
[336943198,1725257442835,-500.0,0.00024657,2]
[336943199,1725257442847,-500.0,0.00024657,2]
[336943200,1725257442857,-502.50593156,0.00024657,2]
[336943201,1725257442867,-2151.56,0.00024657,2]
[336943202,1725257442876,-502.06547682,0.00024657,2]
[336943203,1725257442887,-1193.68,0.00024657,2]
[336943204,1725257442896,-959.84,0.00024657,2]
[336943205,1725257442905,-500.0,0.00024657,2]
[336943206,1725257442915,-500.0,0.00024657,2]
[336943207,1725257442924,-500.0,0.00024657,2]
[336943208,1725257442934,-1073.65,0.00024657,2]
[336943209,1725257442943,-500.0,0.00024657,2]
[336943210,1725257442952,-500.0,0.00024657,2]
[336943211,1725257442962,-500.0,0.00024657,2]
[336943212,1725257442971,-500.0,0.00024657,2]
[336943213,1725257442980,-194.29835824,0.00024657,2]
[336943214,1725257442989,-500.0,0.00024657,2]
[336943215,1725257442999,-500.0,0.00024657,2]
[336943216,1725257443008,-1372.18,0.00024657,2]
[336943217,1725257443017,-500.0,0.00024657,2]
[336943218,1725257443026,-500.0,0.00024657,2]
[336943219,1725257443036,-1262.6,0.00024657,2]
[336943220,1725257443045,-815.5,0.00024657,2]
[336943221,1725257443054,-1206.09,0.00024657,2]
[336943222,1725257443063,-500.0,0.00024657,2]
[336943223,1725257443073,-500.0,0.00024657,2]
[336943224,1725257443082,-1986.52,0.00024657,2]
[336943225,1725257443091,-1041.71,0.00024657,2]
[336943226,1725257443100,-500.0,0.00024657,2]
[336943227,1725257443109,-500.0,0.00024657,2]
[336943228,1725257443118,-500.0,0.00024657,2]
[336943229,1725257443127,-500.0,0.00024657,2]
[336943230,1725257443137,-500.0,0.00024657,2]
[336943231,1725257443146,-500.0,0.00024657,2]
[336943232,1725257443155,-500.0,0.00024657,2]
[336943233,1725257443166,-859.7,0.00024657,2]
[336943234,1725257443177,-992.83,0.00024657,2]
[336943235,1725257443187,-1412.55,0.00024657,2]
[336943236,1725257443197,-500.0,0.00024657,2]
[336943237,1725257443207,-501.15176496,0.00024657,2]
[336943238,1725257443218,-500.0,0.00024657,2]
[336943240,1725257443230,-500.0,0.00024657,2]
[336943241,1725257443241,-733.81,0.00024657,2]
[336943242,1725257443251,-500.0,0.00024657,2]
[336943243,1725257443261,-500.0,0.00024657,2]
[336943244,1725257443270,-500.0,0.00024657,2]
[336943245,1725257443279,-500.0,0.00024657,2]
[336943246,1725257443289,-501.80702055,0.00024657,2]
[336943247,1725257443298,-500.0,0.00024657,2]
[336943248,1725257443307,-3734.39,0.00024657,2]
[336943249,1725257443316,-500.0,0.00024657,2]
[336943250,1725257443325,-847.48,0.00024657,2]
[336943251,1725257443335,-1052.29,0.00024657,2]
[336943252,1725257443344,-500.0,0.00024657,2]
[336943253,1725257443353,-1627.3,0.00024657,2]
[336943254,1725257443362,-500.0,0.00024657,2]
[336943255,1725257443372,-807.76,0.00024657,2]
[336943256,1725257443382,-740.63,0.00024657,2]
[336943257,1725257443391,-500.0,0.00024657,2]
[336943258,1725257443400,-500.0,0.00024657,2]
[336943259,1725257443410,-504.35120959,0.00024657,2]
[336943260,1725257443420,-500.0,0.00024657,2]
[336943261,1725257443429,-500.0,0.00024657,2]
[336943262,1725257443439,-1206.52,0.00024657,2]
[336943263,1725257443448,-515.3,0.00024657,2]
[336943264,1725257443457,-500.0,0.00024657,2]
[336943265,1725257443467,-500.0,0.00024657,2]
[336943266,1725257443477,-500.0,0.00024657,2]
[336943267,1725257443486,-500.0,0.00024657,2]
[336943268,1725257443496,-500.0,0.00024657,2]
[336943269,1725257443505,-687.81,0.00024657,2]
[336943270,1725257443514,-1033.35,0.00024657,2]
[336943271,1725257443524,-500.0,0.00024657,2]
[336943272,1725257443533,-500.0,0.00024657,2]
[336943273,1725257443544,-500.0,0.00024657,2]
[336943274,1725257443554,-1150.78,0.00024657,2]
[336943275,1725257443563,-500.0,0.00024657,2]
[336943276,1725257443573,-500.0,0.00024657,2]
[336943277,1725257443582,-500.0,0.00024657,2]
[336943278,1725257443591,-1275.03,0.00024657,2]
[336943279,1725257443600,-500.0,0.00024657,2]
[336943280,1725257443609,-500.0,0.00024657,2]
[336943281,1725257443618,-500.0,0.00024657,2]
[336943282,1725257443627,-500.0,0.00024657,2]
[336943283,1725257443636,-1253.18,0.00024657,2]
[336943284,1725257443646,-691.33,0.00024657,2]
[336943285,1725257443655,-5778.13,0.00024657,2]
[336943286,1725257443664,-500.0,0.00024657,2]
[336943287,1725257443673,-334.16688174,0.00024657,2]
[336943288,1725257443686,-601.16,0.00024657,2]
[336943289,1725257443695,-500.0,0.00024657,2]
[336943290,1725257443705,-500.0,0.00024657,2]
[336943291,1725257443714,-500.0,0.00024657,2]
[336943292,1725257443723,-504.28990011,0.00024657,2]
[336943293,1725257443732,-1151.56,0.00024657,2]
[336943294,1725257443742,-598.43,0.00024657,2]
[336943295,1725257443752,-500.0,0.00024657,2]
[336943296,1725257443761,-500.0,0.00024657,2]
[336943297,1725257443770,-500.0,0.00024657,2]
[336943298,1725257443780,-944.02,0.00024657,2]
[336943299,1725257443790,-1286.05,0.00024657,2]
[336943300,1725257443799,-572.68,0.00024657,2]
[336943301,1725257443809,-500.0,0.00024657,2]
[336943302,1725257443818,-597.21,0.00024657,2]
[336943303,1725257443827,-1436.17,0.00024657,2]
[336943304,1725257443837,-500.0,0.00024657,2]
[336943305,1725257443847,-1010.37,0.00024657,2]
[336943306,1725257443855,-991.49,0.00024657,2]
[336943307,1725257443865,-1079.61,0.00024657,2]
[336943308,1725257443874,-500.0,0.00024657,2]
[336943309,1725257443884,-118.48575438,0.00024657,2]
[336943310,1725257443912,-381.51424562,0.00024657,2]
[336943311,1725257443922,-500.0,0.00024657,2]
[336943312,1725257443933,-500.0,0.00024657,2]
[336943313,1725257443943,-2152.91,0.00024657,2]
[336943314,1725257443952,-500.0,0.00024657,2]
[336943315,1725257443962,-429.00084277,0.00024657,2]
[336943316,1725257443971,-6138.78,0.00024657,2]
[336943317,1725257443981,-500.0,0.00024657,2]
[336943318,1725257443991,-504.57409693,0.00024657,2]
[336943319,1725257444000,-500.0,0.00024657,2]
[336943320,1725257444009,-500.0,0.00024657,2]
[336943321,1725257444018,-975.14,0.00024657,2]
[336943322,1725257444027,-500.0,0.00024657,2]
[336943323,1725257444036,-500.0,0.00024657,2]
[336943324,1725257444046,-961.23,0.00024657,2]
[336943325,1725257444055,-500.0,0.00024657,2]
[336943326,1725257444065,-2807.02,0.00024657,2]
[336943327,1725257444074,-500.0,0.00024657,2]
[336943328,1725257444083,-1004.99,0.00024657,2]
[336943329,1725257444094,-500.0,0.00024657,2]
[336943330,1725257444104,-500.0,0.00024657,2]
[336943331,1725257444114,-500.0,0.00024657,2]
[336943332,1725257444123,-500.0,0.00024657,2]
[336943333,1725257444133,-500.0,0.00024657,2]
[336943334,1725257444142,-500.0,0.00024657,2]
[336943335,1725257444152,-500.0,0.00024657,2]
[336943336,1725257444161,-1158.81,0.00024657,2]
[336943337,1725257444175,-500.0,0.00024657,2]
[336943338,1725257444188,-1557.39,0.00024657,2]
[336943339,1725257444197,-1125.63,0.00024657,2]
[336943340,1725257444207,-1125.63,0.00024657,2]
[336943341,1725257444217,-1125.63,0.00024657,2]
[336943342,1725257444226,-1125.63,0.00024657,2]
[336943343,1725257444236,-1125.63,0.00024657,2]
[336943344,1725257444248,-1125.63,0.00024657,2]
[336943345,1725257444259,-1125.63,0.00024657,2]
[336943346,1725257444269,-500.0,0.00024657,2]
[336943347,1725257444278,-1125.63,0.00024657,2]
[336943348,1725257444287,-500.0,0.00024657,2]
[336943349,1725257444296,-500.0,0.00024657,2]
[336943350,1725257444307,-500.0,0.00024657,2]
[336943351,1725257444317,-500.0,0.00024657,2]
[336943352,1725257444327,-500.0,0.00024657,2]
[336943353,1725257444338,-500.0,0.00024658,2]
[336943354,1725257444347,-500.0,0.00024658,2]
[336943355,1725257444356,-500.0,0.00024658,2]
[336943356,1725257444366,-500.0,0.00024658,2]
[336943357,1725257444375,-579.25084862,0.00024658,2]
[336943358,1725257444385,-164.745261,0.0002466,2]
[336943359,1725257444394,-500.0,0.00024673,2]
[336943360,1725257444403,-176.71261535,0.00024673,2]
[336943361,1725257444413,-600.0,0.00024714,8]
[336943362,1725257444422,-600.0,0.00024715,8]
[336943363,1725257444432,-600.0,0.00024715,8]
[336943364,1725257444442,-600.0,0.00024715,8]
[336943365,1725257444452,-600.0,0.00024715,8]
[336943366,1725257444462,-582.21040088,0.00024763,2]
[336943367,1725257444472,-164.745261,0.00024798,2]
[336943368,1725257444481,-1466.59910629,0.00024831,2]
[336943369,1725257444490,-500.0,0.00024909,2]
[336943370,1725257444500,-153.0,0.0002492,2]
[336943371,1725257444509,-438.068132,0.0002492,2]
[336943372,1725257444518,-207.943127,0.0002492,2]
[336943373,1725257444527,-207.943127,0.0002492,2]
[336943374,1725257444537,-306.0,0.0002492,2]
[336943375,1725257444546,-153.0,0.0002492,2]
[336943376,1725257444557,-153.0,0.0002492,2]
[336943377,1725257444566,-153.0,0.0002492,2]
[336943378,1725257444575,-409.7901659,0.00024921,2]
[336943379,1725257444584,-1125.63,0.00024929,2]
[336943380,1725257444595,-546.50776741,0.0002493,2]
[336943381,1725257444606,-500.0,0.0002493,2]
[336943382,1725257444615,-500.0,0.0002493,2]
[336943383,1725257444624,-500.0,0.0002493,2]
[336943384,1725257444634,-500.0,0.0002493,2]
[336943385,1725257444644,-500.0,0.0002493,2]
[336943386,1725257444653,-500.0,0.0002493,2]
[336943387,1725257444663,-500.0,0.0002493,2]
[336943388,1725257444672,-1125.63,0.0002493,2]
[336943389,1725257444681,-1125.63,0.0002493,2]
[336943390,1725257444691,-1125.63,0.0002493,2]
[336943391,1725257444700,-1125.63,0.0002493,2]
[336943392,1725257444709,-1125.63,0.0002493,2]
[336943393,1725257444718,-1125.63,0.0002493,2]
[336943394,1725257444728,-27367.69713504,0.00024931,11]
[336943395,1725257444737,-500.0,0.00024931,2]
[336943396,1725257444746,-531.23,0.00024931,2]
[336943397,1725257444756,-500.0,0.00024931,2]
[336943398,1725257444885,-309.44318553,0.00024931,2]
[336943399,1725257444894,-500.0,0.00024931,2]
[336943400,1725257444904,-500.0,0.00024931,2]
[336943401,1725257444913,-500.0,0.00024931,2]
[336943402,1725257444923,-383.56486565,0.00024931,2]
[336943403,1725257444932,-500.0,0.00024931,2]
[336943404,1725257444942,-500.0,0.00024931,2]
[336943405,1725257444951,-500.0,0.00024931,2]
[336943406,1725257444960,-500.0,0.00024931,2]
[336943407,1725257444970,-500.0,0.00024931,2]
[336943408,1725257444978,-500.0,0.00024931,2]
[336943409,1725257444988,-500.0,0.00024931,2]
[336943410,1725257444998,-500.0,0.00024931,2]
[336943411,1725257445007,-500.0,0.00024931,2]
[336943412,1725257445017,-500.0,0.00024931,2]
[336943413,1725257445026,-533.07142725,0.00024931,2]
[336943414,1725257445035,-500.0,0.00024931,2]
[336943415,1725257445043,-500.0,0.00024931,2]
[336943416,1725257445053,-500.0,0.00024931,2]
[336943417,1725257445062,-500.0,0.00024931,2]